Workbook

Sheet Guidance
A2: RESOURCES:
A4: The following resources can be accessed via the tabs below:
A6: a) 2021 Template - Helps to plan the hours to be worked by an employee. Will assist in ensuring that allocated hours equate to total hours to be worked during the leave year.
A8: b) Working Hours Calculator - Assists in calculating the total number of hours to be worked per year (excluding Annual Leave and Public Holiday).
A10: c) Annual Leave Calculator - Assists in calculating the entitlement to annual leave and public holiday.
A12: The '2021 Template' and 'Working Hours Calculator' can be used to help plan an employees annualised hours working pattern. The Annual Leave Calculator will help when working out AL/PH entitlement to be set up in Bodet. The guidance below outlines the steps required in order to make use of these resources.
A14: GUIDANCE:
A16: Copying and saving the spreadsheet:
A18: Copy the 2021 template into another workbook by clicking on the "2021 Template" tab at the bottom of the spreadsheet. Right mouse so that the following box appears:
A33: Employee Details:
A35: 1. Input employee name and job title.
A37: 2. Input contractual hours per annum (excluding annual leave and public holiday). If hours given include AL/PH the Working Hours Calculator worksheet can be used to calculate the contractual hours per annum (excluding annual leave and public holiday).
A39: 3. Input the start and end dates for this year by clicking on the relevant cells (M8/M9) and using the dropdowns.
A40: (i) For an employee who is expected to work for the whole year these will be 01/01/2021 and 31/12/2021.
A41: (ii) For any days that are outside the start and end dates entered the cells automatically turn red.
A43: 4. Ensure that all of the cells highlighted in red have a value of 0.00.
A45: 5. Confirm whether the employee has greater than 5 years service by clicking on the relevant cell (M10) and using the dropdown to select "Yes" or "No".
A47: 6. Enter the average number of days worked per week. The standard is 5 if there is no predicted work pattern, but if a rota is being used then the total number of days to be worked divided by weeks this year that are expected to be worked (maximum 52.18) should be used. Please note this figure is fixed for the whole year.
A49: 7. If there are hours bought forward from the previous year/spreadsheet input the total number of hours to be added.
A50: The Annualised Hours Planner:
A52: The planned number of hours to be worked each day is entered in the appropriate cells.
A54: The "Weekly Total (Excl. AL/PH)" column totals the hours to be worked during each week.
A56: The "Hours Remaining (Excl. AL/PH)" column shows the total hours remaining to be worked during this calendar year.
A57: (i) If, at the end of the calendar year, the figure in this column is negative then the hours that the employee has worked exceeded the total contracted hours by the number indicated. These hours should be claimed as additional hours, however, if any of these hours exceed the annual overtime threshold (1931 hours pro rata) they should be claimed as overtime.
A58: (ii) If, at the end of the calendar year, the figure in this column is positive then the hours that the employee has worked is less than the total contracted hours by the number indicated. These hours should be added to the following year's total.
A60: Completing an EMIS Employee Form when an employee starts in post:
A62: Section C:
A63: Fixed hours per week is the average hours per week, which must be to 3 decimal places.
A65: Section F:
A66: Should state that the employee is working annualised hours and give the total number of hours to be worked in a full year including AL/PH, which must be to 3 decimal places.
A68: EMIS Form - Example:
A92: The Annual Leave Calculator:
A94: 1. If there is a set pattern of work enter the hours of work.
A96: 2. Enter the hours excluding AL/PH for both under and over 5 years service.
A98: 4. Enter the number of calendar days that the employee will be on annualised hours in this year, the calendar2021 tab can be used to find this.
A100: 5. The total number of hours of entitlement to AL/PH for the whole year will be shown in columns D and E and the totals for the part year will be shown in columns G and H.

Sheet calendar2021
A1: Calendar for | B1: 2021
B2: Date | C2: Day | D2: Number of days
B3: 2021-01-01 | C3: Friday | D3: 1
B4: 2021-01-02 | C4: Saturday | D4: =D3+1 -> 2
B5: 2021-01-03 | C5: Sunday | D5: 3
B6: 2021-01-04 | C6: Monday | D6: 4
B7: 2021-01-05 | C7: Tuesday | D7: 5
B8: 2021-01-06 | C8: Wednesday | D8: 6
B9: 2021-01-07 | C9: Thursday | D9: 7
B10: 2021-01-08 | C10: Friday | D10: 8
B11: 2021-01-09 | C11: Saturday | D11: 9
B12: 2021-01-10 | C12: Sunday | D12: 10
B13: 2021-01-11 | C13: Monday | D13: 11
B14: 2021-01-12 | C14: Tuesday | D14: 12
B15: 2021-01-13 | C15: Wednesday | D15: 13
B16: 2021-01-14 | C16: Thursday | D16: 14
B17: 2021-01-15 | C17: Friday | D17: 15
B18: 2021-01-16 | C18: Saturday | D18: 16
B19: 2021-01-17 | C19: Sunday | D19: 17
B20: 2021-01-18 | C20: Monday | D20: 18
B21: 2021-01-19 | C21: Tuesday | D21: 19
B22: 2021-01-20 | C22: Wednesday | D22: =D21+1 -> 20
B23: 2021-01-21 | C23: Thursday | D23: 21
B24: 2021-01-22 | C24: Friday | D24: 22
B25: 2021-01-23 | C25: Saturday | D25: 23
B26: 2021-01-24 | C26: Sunday | D26: 24
B27: 2021-01-25 | C27: Monday | D27: 25
B28: 2021-01-26 | C28: Tuesday | D28: 26
B29: 2021-01-27 | C29: Wednesday | D29: 27
B30: 2021-01-28 | C30: Thursday | D30: 28
B31: 2021-01-29 | C31: Friday | D31: 29
B32: 2021-01-30 | C32: Saturday | D32: 30
B33: 2021-01-31 | C33: Sunday | D33: 31
B34: 2021-02-01 | C34: Monday | D34: 32
B35: 2021-02-02 | C35: Tuesday | D35: 33
B36: 2021-02-03 | C36: Wednesday | D36: 34
B37: 2021-02-04 | C37: Thursday | D37: 35
B38: 2021-02-05 | C38: Friday | D38: 36
B39: 2021-02-06 | C39: Saturday | D39: 37
B40: 2021-02-07 | C40: Sunday | D40: 38
B41: 2021-02-08 | C41: Monday | D41: 39
B42: 2021-02-09 | C42: Tuesday | D42: 40
B43: 2021-02-10 | C43: Wednesday | D43: 41
B44: 2021-02-11 | C44: Thursday | D44: 42
B45: 2021-02-12 | C45: Friday | D45: 43
B46: 2021-02-13 | C46: Saturday | D46: 44
B47: 2021-02-14 | C47: Sunday | D47: 45
B48: 2021-02-15 | C48: Monday | D48: 46
B49: 2021-02-16 | C49: Tuesday | D49: 47
B50: 2021-02-17 | C50: Wednesday | D50: 48
B51: 2021-02-18 | C51: Thursday | D51: 49
B52: 2021-02-19 | C52: Friday | D52: 50
B53: 2021-02-20 | C53: Saturday | D53: 51
B54: 2021-02-21 | C54: Sunday | D54: 52
B55: 2021-02-22 | C55: Monday | D55: 53
B56: 2021-02-23 | C56: Tuesday | D56: 54
B57: 2021-02-24 | C57: Wednesday | D57: 55
B58: 2021-02-25 | C58: Thursday | D58: 56
B59: 2021-02-26 | C59: Friday | D59: 57
B60: 2021-02-27 | C60: Saturday | D60: 58
B61: 2021-02-28 | C61: Sunday | D61: 59
B62: 2021-03-01 | C62: Monday | D62: 60
B63: 2021-03-02 | C63: Tuesday | D63: 61
B64: 2021-03-03 | C64: Wednesday | D64: 62
B65: 2021-03-04 | C65: Thursday | D65: 63
B66: 2021-03-05 | C66: Friday | D66: 64
B67: 2021-03-06 | C67: Saturday | D67: 65
B68: 2021-03-07 | C68: Sunday | D68: 66
B69: 2021-03-08 | C69: Monday | D69: 67
B70: 2021-03-09 | C70: Tuesday | D70: 68
B71: 2021-03-10 | C71: Wednesday | D71: 69
B72: 2021-03-11 | C72: Thursday | D72: 70
B73: 2021-03-12 | C73: Friday | D73: 71
B74: 2021-03-13 | C74: Saturday | D74: 72
B75: 2021-03-14 | C75: Sunday | D75: 73
B76: 2021-03-15 | C76: Monday | D76: 74
B77: 2021-03-16 | C77: Tuesday | D77: 75
B78: 2021-03-17 | C78: Wednesday | D78: 76
B79: 2021-03-18 | C79: Thursday | D79: 77
B80: 2021-03-19 | C80: Friday | D80: 78
B81: 2021-03-20 | C81: Saturday | D81: 79
B82: 2021-03-21 | C82: Sunday | D82: 80
B83: 2021-03-22 | C83: Monday | D83: 81
B84: 2021-03-23 | C84: Tuesday | D84: 82
B85: 2021-03-24 | C85: Wednesday | D85: 83
B86: 2021-03-25 | C86: Thursday | D86: =D85+1 -> 84
B87: 2021-03-26 | C87: Friday | D87: 85
B88: 2021-03-27 | C88: Saturday | D88: 86
B89: 2021-03-28 | C89: Sunday | D89: 87
B90: 2021-03-29 | C90: Monday | D90: 88
B91: 2021-03-30 | C91: Tuesday | D91: 89
B92: 2021-03-31 | C92: Wednesday | D92: 90
B93: 2021-04-01 | C93: Thursday | D93: 91
B94: 2021-04-02 | C94: Friday | D94: 92
B95: 2021-04-03 | C95: Saturday | D95: 93
B96: 2021-04-04 | C96: Sunday | D96: 94
B97: 2021-04-05 | C97: Monday | D97: 95
B98: 2021-04-06 | C98: Tuesday | D98: 96
B99: 2021-04-07 | C99: Wednesday | D99: 97
B100: 2021-04-08 | C100: Thursday | D100: 98
B101: 2021-04-09 | C101: Friday | D101: 99
B102: 2021-04-10 | C102: Saturday | D102: 100
B103: 2021-04-11 | C103: Sunday | D103: 101
B104: 2021-04-12 | C104: Monday | D104: 102
B105: 2021-04-13 | C105: Tuesday | D105: 103
B106: 2021-04-14 | C106: Wednesday | D106: 104
B107: 2021-04-15 | C107: Thursday | D107: 105
B108: 2021-04-16 | C108: Friday | D108: 106
B109: 2021-04-17 | C109: Saturday | D109: 107
B110: 2021-04-18 | C110: Sunday | D110: 108
B111: 2021-04-19 | C111: Monday | D111: 109
B112: 2021-04-20 | C112: Tuesday | D112: 110
B113: 2021-04-21 | C113: Wednesday | D113: 111
B114: 2021-04-22 | C114: Thursday | D114: 112
B115: 2021-04-23 | C115: Friday | D115: 113
B116: 2021-04-24 | C116: Saturday | D116: 114
B117: 2021-04-25 | C117: Sunday | D117: 115
B118: 2021-04-26 | C118: Monday | D118: 116
B119: 2021-04-27 | C119: Tuesday | D119: 117
B120: 2021-04-28 | C120: Wednesday | D120: 118
B121: 2021-04-29 | C121: Thursday | D121: 119
B122: 2021-04-30 | C122: Friday | D122: 120
B123: 2021-05-01 | C123: Saturday | D123: 121
B124: 2021-05-02 | C124: Sunday | D124: 122
B125: 2021-05-03 | C125: Monday | D125: 123
B126: 2021-05-04 | C126: Tuesday | D126: 124
B127: 2021-05-05 | C127: Wednesday | D127: 125
B128: 2021-05-06 | C128: Thursday | D128: 126
B129: 2021-05-07 | C129: Friday | D129: 127
B130: 2021-05-08 | C130: Saturday | D130: 128
B131: 2021-05-09 | C131: Sunday | D131: 129
B132: 2021-05-10 | C132: Monday | D132: 130
B133: 2021-05-11 | C133: Tuesday | D133: 131
B134: 2021-05-12 | C134: Wednesday | D134: 132
B135: 2021-05-13 | C135: Thursday | D135: 133
B136: 2021-05-14 | C136: Friday | D136: 134
B137: 2021-05-15 | C137: Saturday | D137: 135
B138: 2021-05-16 | C138: Sunday | D138: 136
B139: 2021-05-17 | C139: Monday | D139: 137
B140: 2021-05-18 | C140: Tuesday | D140: 138
B141: 2021-05-19 | C141: Wednesday | D141: 139
B142: 2021-05-20 | C142: Thursday | D142: 140
B143: 2021-05-21 | C143: Friday | D143: 141
B144: 2021-05-22 | C144: Saturday | D144: 142
B145: 2021-05-23 | C145: Sunday | D145: 143
B146: 2021-05-24 | C146: Monday | D146: 144
B147: 2021-05-25 | C147: Tuesday | D147: 145
B148: 2021-05-26 | C148: Wednesday | D148: 146
B149: 2021-05-27 | C149: Thursday | D149: 147
B150: 2021-05-28 | C150: Friday | D150: =D149+1 -> 148
B151: 2021-05-29 | C151: Saturday | D151: 149
B152: 2021-05-30 | C152: Sunday | D152: 150
B153: 2021-05-31 | C153: Monday | D153: 151
B154: 2021-06-01 | C154: Tuesday | D154: 152
B155: 2021-06-02 | C155: Wednesday | D155: 153
B156: 2021-06-03 | C156: Thursday | D156: 154
B157: 2021-06-04 | C157: Friday | D157: 155
B158: 2021-06-05 | C158: Saturday | D158: 156
B159: 2021-06-06 | C159: Sunday | D159: 157
B160: 2021-06-07 | C160: Monday | D160: 158
B161: 2021-06-08 | C161: Tuesday | D161: 159
B162: 2021-06-09 | C162: Wednesday | D162: 160
B163: 2021-06-10 | C163: Thursday | D163: 161
B164: 2021-06-11 | C164: Friday | D164: 162
B165: 2021-06-12 | C165: Saturday | D165: 163
B166: 2021-06-13 | C166: Sunday | D166: 164
B167: 2021-06-14 | C167: Monday | D167: 165
B168: 2021-06-15 | C168: Tuesday | D168: 166
B169: 2021-06-16 | C169: Wednesday | D169: 167
B170: 2021-06-17 | C170: Thursday | D170: 168
B171: 2021-06-18 | C171: Friday | D171: 169
B172: 2021-06-19 | C172: Saturday | D172: 170
B173: 2021-06-20 | C173: Sunday | D173: 171
B174: 2021-06-21 | C174: Monday | D174: 172
B175: 2021-06-22 | C175: Tuesday | D175: 173
B176: 2021-06-23 | C176: Wednesday | D176: 174
B177: 2021-06-24 | C177: Thursday | D177: 175
B178: 2021-06-25 | C178: Friday | D178: 176
B179: 2021-06-26 | C179: Saturday | D179: 177
B180: 2021-06-27 | C180: Sunday | D180: 178
B181: 2021-06-28 | C181: Monday | D181: 179
B182: 2021-06-29 | C182: Tuesday | D182: 180
B183: 2021-06-30 | C183: Wednesday | D183: 181
B184: 2021-07-01 | C184: Thursday | D184: 182
B185: 2021-07-02 | C185: Friday | D185: 183
B186: 2021-07-03 | C186: Saturday | D186: 184
B187: 2021-07-04 | C187: Sunday | D187: 185
B188: 2021-07-05 | C188: Monday | D188: 186
B189: 2021-07-06 | C189: Tuesday | D189: 187
B190: 2021-07-07 | C190: Wednesday | D190: 188
B191: 2021-07-08 | C191: Thursday | D191: 189
B192: 2021-07-09 | C192: Friday | D192: 190
B193: 2021-07-10 | C193: Saturday | D193: 191
B194: 2021-07-11 | C194: Sunday | D194: 192
B195: 2021-07-12 | C195: Monday | D195: 193
B196: 2021-07-13 | C196: Tuesday | D196: 194
B197: 2021-07-14 | C197: Wednesday | D197: 195
B198: 2021-07-15 | C198: Thursday | D198: 196
B199: 2021-07-16 | C199: Friday | D199: 197
B200: 2021-07-17 | C200: Saturday | D200: 198
... 167 more rows

Sheet Annual Leave Calculator
B3: EXAMPLE FOR EMPLOYEES ON ANNUALISED HOURS STARTING 01/02/2021:
B5: BASIC DETAILS | E5: WHOLE YEAR | G5: PART YEAR
B6: Hours per week | C6: Hours excluding AL/PH (under 5 years service) | D6: Hours excluding AL/PH (over 5 years service) | E6: Total AL/PH (under 5 years service) | F6: Total AL/PH (over 5 years service) | G6: Calendar Days worked this year | H6: Total AL/PH Feb-Dec (under 5 years service) | I6: Total AL/PH Feb-Dec(over 5 years service)
B7: 36.25 | C7: 1645.025 | D7: 1608.775 | E7: =C7*0.149846 -> 246.5004162 | F7: =D7*0.175755 -> 282.7502501 | G7: 334 | H7: =(E7/365.26)*G7 -> 225.4042025 | I7: =(F7/365.26)*G7 -> 258.5516715
B8: 18.125 | C8: 822.513 | D8: 804.388 | E8: =C8*0.149846 -> 123.250283 | F8: =D8*0.175755 -> 141.3752129 | G8: 334 | H8: =(E8/365.26)*G8 -> 112.7021697 | I8: =(F8/365.26)*G8 -> 129.2759161
B10: CALCULATOR:
B12: BASIC DETAILS | E12: WHOLE YEAR | G12: PART YEAR
B13: Hours per week | C13: Hours excluding AL/PH (under 5 years service) | D13: Hours excluding AL/PH (over 5 years service) | E13: Total AL/PH (under 5 years service) | F13: Total AL/PH (over 5 years service) | G13: Calendar Days worked this year | H13: Total AL/PH Feb-Dec (under 5 years service) | I13: Total AL/PH Feb-Dec(over 5 years service)
E14: =C14*0.149846 -> 0 | F14: =D14*0.175755 -> 0 | H14: =(E14/365.26)*G14 -> 0 | I14: =(F14/365.26)*G14 -> 0
E15: =C15*0.149846 -> 0 | F15: =D15*0.175755 -> 0 | H15: =(E15/365.26)*G15 -> 0 | I15: =(F15/365.26)*G15 -> 0

Sheet Working Hours Calculator
A2: Please use whichever calculator is relevant:
A8: Hours Per Week
A9: Contracted Hours Per Week (Including AL/PH) for the whole year | B9: Hours X 52.18 | C9: Daily hours | D9: Under 5 Years(34Xdaily hours) | E9: Over 5 Years(39xdaily hours) | F9: Total Hours Per Year (Excluding AL/PH) Under 5 Years Cont. Service | G9: Total Hours Per Year (Excluding AL/PH) Over 5 Years Cont. Service | H9: F*0.15494 | I9: G*0.18108 | J9: H+F | K9: G+I
A10: 36.25 | B10: =A10*52.18 -> 1891.525 | C10: =A10/5 -> 7.25 | D10: =34*C10 -> 246.5 | E10: =39*C10 -> 282.75 | F10: =B10-D10 -> 1645.025 | G10: =B10-E10 -> 1608.775 | H10: =F10*0.15494 -> 254.8801735 | I10: =G10*0.18108 -> 291.316977 | J10: =F10+H10 -> 1899.905174 | K10: =G10+I10 -> 1900.091977
A16: Total Hours Per Year
A17: Hours for the whole year (Including AL/PH) | B17: Daily Hours | C17: Under 5 Years(35Xdaily hours) | D17: Over 5 Years(39xdaily hours) | F17: Total Hours Per Year (Excluding AL/PH) Under 5 Years Cont. Service | G17: Total Hours Per Year (Excluding AL/PH) Over 5 Years Cont. Service | H17: F*0.15494 | I17: G*0.18108 | J17: H+F | K17: G+I
A18: 1891.525 | B18: =A18/52.18/5 -> 7.25 | C18: =34*B18 -> 246.5 | D18: =39*B18 -> 282.75 | F18: =A18-C18 -> 1645.025 | G18: =A18-D18 -> 1608.775 | H18: =F18*0.15494 -> 254.8801735 | I18: =G18*0.18108 -> 291.316977 | J18: =F18+H18 -> 1899.905174 | K18: =G18+I18 -> 1900.091977

Sheet 2021 Template
B1: ANNUALISED HOURS PLANNER 2021 | Y1: Days | AB1: Y/N | AC1: Date
Y2: 1 | AB2: Yes | AC2: 2021-01-01
Y3: 2 | AB3: No | AC3: 2021-01-02
E4: EMPLOYEE DETAILS: | Y4: 3 | AC4: 2021-01-03
B5: For guidance on using the spreadsheet, please click on the Guidance tab below. | E5: Name | Y5: 4 | AC5: 2021-01-04
E6: Job Title | Y6: 5 | AC6: 2021-01-05
E7: Contracted hours this year (excluding AL and PH) | O7: 0 | Y7: 6 | AC7: 2021-01-06
E8: Start date | K8: =VALUE(SList) -> 44197 | L8: =K8-1 -> 44196 | O8: 2021-01-01 | Y8: 7 | AC8: 2021-01-07
E9: End date | K9: =VALUE(O9) -> 44561 | L9: =K9+1 -> 44562 | O9: 2021-12-31 | AC9: 2021-01-08
E10: Greater than 5 Years Service? | O10: No | AC10: 2021-01-09
E11: Average number of days worked per week | O11: 5 | AC11: 2021-01-10
E12: Hours taking start and end dates into account | J12: =O9-O8+ 1 -> 365 | K12: =IF(J12 >= 365,365.26,J12) -> 365.26 | O12: =SUM(O7/365.26)*K12 -> 0 | AC12: 2021-01-11
AC13: 2021-01-12
E14: BROUGHT FORWARD HOURS: | AC14: 2021-01-13
E15: Outstanding hours B/F from previous sheet | O15: 0 | AC15: 2021-01-14
E16: Outstanding AL/PH hours from previous sheet | O16: 0 | AC16: 2021-01-15
AC17: 2021-01-16
E18: TOTALS: | AC18: 2021-01-17
E19: Total hours plus holiday entitlement (excluding B/F) | O19: =+O12+O80-O16 -> 0 | AC19: 2021-01-18
E20: Average weekly hours | K20: =O12/K79 -> 0 | O20: =ROUND(O19/K79,4) -> 0 | AC20: 2021-01-19
E21: Average daily hours | K21: =K20/5 -> 0 | O21: =ROUND(O20/O11,6) -> 0 | AC21: 2021-01-20
AC22: 2021-01-21
B23: ANNUALISED HOURS PLANNER | AC23: 2021-01-22
B24: Week Start Date | C24: Monday | D24: Tuesday | E24: Wednesday | F24: Thursday | G24: Friday | H24: Saturday | I24: Sunday | J24: Sickness | K24: Holiday | L24: Special Leave | M24: AL/PH Hours (Not Daily Average) | N24: Weekly Total (Excl. AL/PH) | O24: Hours Remaining (Excl. AL/PH) | AC24: 2021-01-23
A25: =VALUE(B25) -> 44193 | B25: 2020-12-28 | C25: 0 | D25: 0 | E25: 0 | F25: 0 | G25: 0 | H25: 0 | I25: 0 | J25: =IF(M25=0,COUNTIF(C25:I25,"LSA"),0) -> 0 | K25: =IF(M25=0,COUNTIF(C25:I25,"LHE"),0) -> 0 | L25: =COUNTIF(C25:I25,"LSL") -> 0 | M25: 0 | N25: 0 | O25: =O12+O15-N25 -> 0 | AC25: 2021-01-24
A26: =VALUE(B26) -> 44200 | B26: =B25+7 -> 2021-01-04 | C26: 0 | D26: 0 | E26: 0 | F26: 0 | G26: 0 | H26: 0 | I26: 0 | J26: =COUNTIF(C26:I26,"LSA") -> 0 | K26: =IF(M26=0,COUNTIF(C26:I26,"LHE"),0) -> 0 | L26: =COUNTIF(C26:I26,"LSL") -> 0 | M26: 0 | N26: =SUM(C26:I26)+(J26*$O$21)+(L26*$O$21) -> 0 | O26: =O25-N26 -> 0 | AC26: 2021-01-25
A27: 44207 | B27: 2021-01-11 | C27: 0 | D27: 0 | E27: 0 | F27: 0 | G27: 0 | H27: 0 | I27: 0 | J27: 0 | K27: 0 | L27: 0 | M27: 0 | N27: =SUM(C27:I27)+(J27*$O$21)+(L27*$O$21) -> 0 | O27: =O26-N27 -> 0 | AC27: 2021-01-26
A28: 44214 | B28: 2021-01-18 | C28: 0 | D28: 0 | E28: 0 | F28: 0 | G28: 0 | H28: 0 | I28: 0 | J28: 0 | K28: 0 | L28: 0 | M28: 0 | N28: 0 | O28: 0 | AC28: 2021-01-27
A29: 44221 | B29: 2021-01-25 | C29: 0 | D29: 0 | E29: 0 | F29: 0 | G29: 0 | H29: 0 | I29: 0 | J29: 0 | K29: 0 | L29: 0 | M29: 0 | N29: 0 | O29: 0 | AC29: 2021-01-28
A30: 44228 | B30: 2021-02-01 | C30: 0 | D30: 0 | E30: 0 | F30: 0 | G30: 0 | H30: 0 | I30: 0 | J30: 0 | K30: 0 | L30: 0 | M30: 0 | N30: 0 | O30: 0 | AC30: 2021-01-29
A31: 44235 | B31: 2021-02-08 | C31: 0 | D31: 0 | E31: 0 | F31: 0 | G31: 0 | H31: 0 | I31: 0 | J31: 0 | K31: 0 | L31: 0 | M31: 0 | N31: 0 | O31: 0 | AC31: 2021-01-30
A32: 44242 | B32: 2021-02-15 | C32: 0 | D32: 0 | E32: 0 | F32: 0 | G32: 0 | H32: 0 | I32: 0 | J32: 0 | K32: 0 | L32: 0 | M32: 0 | N32: 0 | O32: 0 | AC32: 2021-01-31
A33: 44249 | B33: 2021-02-22 | C33: 0 | D33: 0 | E33: 0 | F33: 0 | G33: 0 | H33: 0 | I33: 0 | J33: 0 | K33: 0 | L33: 0 | M33: 0 | N33: 0 | O33: 0 | AC33: 2021-02-01
A34: 44256 | B34: 2021-03-01 | C34: 0 | D34: 0 | E34: 0 | F34: 0 | G34: 0 | H34: 0 | I34: 0 | J34: 0 | K34: 0 | L34: 0 | M34: 0 | N34: 0 | O34: 0 | AC34: 2021-02-02
A35: 44263 | B35: 2021-03-08 | C35: 0 | D35: 0 | E35: 0 | F35: 0 | G35: 0 | H35: 0 | I35: 0 | J35: 0 | K35: 0 | L35: 0 | M35: 0 | N35: 0 | O35: 0 | AC35: 2021-02-03
A36: 44270 | B36: 2021-03-15 | C36: 0 | D36: 0 | E36: 0 | F36: 0 | G36: 0 | H36: 0 | I36: 0 | J36: 0 | K36: 0 | L36: 0 | M36: 0 | N36: 0 | O36: 0 | AC36: 2021-02-04
A37: 44277 | B37: 2021-03-22 | C37: 0 | D37: 0 | E37: 0 | F37: 0 | G37: 0 | H37: 0 | I37: 0 | J37: 0 | K37: 0 | L37: 0 | M37: 0 | N37: 0 | O37: 0 | AC37: 2021-02-05
A38: 44284 | B38: 2021-03-29 | C38: 0 | D38: 0 | E38: 0 | F38: 0 | G38: 0 | H38: 0 | I38: 0 | J38: 0 | K38: 0 | L38: 0 | M38: 0 | N38: 0 | O38: 0 | AC38: 2021-02-06
A39: 44291 | B39: 2021-04-05 | C39: 0 | D39: 0 | E39: 0 | F39: 0 | G39: 0 | H39: 0 | I39: 0 | J39: 0 | K39: 0 | L39: 0 | M39: 0 | N39: 0 | O39: 0 | AC39: 2021-02-07
A40: 44298 | B40: 2021-04-12 | C40: 0 | D40: 0 | E40: 0 | F40: 0 | G40: 0 | H40: 0 | I40: 0 | J40: 0 | K40: 0 | L40: 0 | M40: 0 | N40: 0 | O40: 0 | AC40: 2021-02-08
A41: 44305 | B41: 2021-04-19 | C41: 0 | D41: 0 | E41: 0 | F41: 0 | G41: 0 | H41: 0 | I41: 0 | J41: 0 | K41: 0 | L41: 0 | M41: 0 | N41: 0 | O41: 0 | AC41: 2021-02-09
A42: 44312 | B42: 2021-04-26 | C42: 0 | D42: 0 | E42: 0 | F42: 0 | G42: 0 | H42: 0 | I42: 0 | J42: 0 | K42: 0 | L42: 0 | M42: 0 | N42: 0 | O42: 0 | AC42: 2021-02-10
A43: 44319 | B43: 2021-05-03 | C43: 0 | D43: 0 | E43: 0 | F43: 0 | G43: 0 | H43: 0 | I43: 0 | J43: 0 | K43: 0 | L43: 0 | M43: 0 | N43: 0 | O43: 0 | AC43: 2021-02-11
A44: 44326 | B44: 2021-05-10 | C44: 0 | D44: 0 | E44: 0 | F44: 0 | G44: 0 | H44: 0 | I44: 0 | J44: 0 | K44: 0 | L44: 0 | M44: 0 | N44: 0 | O44: 0 | AC44: 2021-02-12
A45: 44333 | B45: 2021-05-17 | C45: 0 | D45: 0 | E45: 0 | F45: 0 | G45: 0 | H45: 0 | I45: 0 | J45: 0 | K45: 0 | L45: 0 | M45: 0 | N45: 0 | O45: 0 | AC45: 2021-02-13
A46: 44340 | B46: 2021-05-24 | C46: 0 | D46: 0 | E46: 0 | F46: 0 | G46: 0 | H46: 0 | I46: 0 | J46: 0 | K46: 0 | L46: 0 | M46: 0 | N46: 0 | O46: 0 | AC46: 2021-02-14
A47: 44347 | B47: 2021-05-31 | C47: 0 | D47: 0 | E47: 0 | F47: 0 | G47: 0 | H47: 0 | I47: 0 | J47: 0 | K47: 0 | L47: 0 | M47: 0 | N47: 0 | O47: 0 | AC47: 2021-02-15
A48: 44354 | B48: 2021-06-07 | C48: 0 | D48: 0 | E48: 0 | F48: 0 | G48: 0 | H48: 0 | I48: 0 | J48: 0 | K48: 0 | L48: 0 | M48: 0 | N48: 0 | O48: 0 | AC48: 2021-02-16
A49: 44361 | B49: 2021-06-14 | C49: 0 | D49: 0 | E49: 0 | F49: 0 | G49: 0 | H49: 0 | I49: 0 | J49: 0 | K49: 0 | L49: 0 | M49: 0 | N49: 0 | O49: 0 | AC49: 2021-02-17
A50: 44368 | B50: 2021-06-21 | C50: 0 | D50: 0 | E50: 0 | F50: 0 | G50: 0 | H50: 0 | I50: 0 | J50: 0 | K50: 0 | L50: 0 | M50: 0 | N50: 0 | O50: 0 | AC50: 2021-02-18
A51: 44375 | B51: 2021-06-28 | C51: 0 | D51: 0 | E51: 0 | F51: 0 | G51: 0 | H51: 0 | I51: 0 | J51: 0 | K51: 0 | L51: 0 | M51: 0 | N51: 0 | O51: 0 | AC51: 2021-02-19
A52: 44382 | B52: 2021-07-05 | C52: 0 | D52: 0 | E52: 0 | F52: 0 | G52: 0 | H52: 0 | I52: 0 | J52: 0 | K52: 0 | L52: 0 | M52: 0 | N52: 0 | O52: 0 | AC52: 2021-02-20
A53: 44389 | B53: 2021-07-12 | C53: 0 | D53: 0 | E53: 0 | F53: 0 | G53: 0 | H53: 0 | I53: 0 | J53: 0 | K53: 0 | L53: 0 | M53: 0 | N53: 0 | O53: 0 | AC53: 2021-02-21
A54: 44396 | B54: 2021-07-19 | C54: 0 | D54: 0 | E54: 0 | F54: 0 | G54: 0 | H54: 0 | I54: 0 | J54: 0 | K54: 0 | L54: 0 | M54: 0 | N54: 0 | O54: 0 | AC54: 2021-02-22
A55: 44403 | B55: 2021-07-26 | C55: 0 | D55: 0 | E55: 0 | F55: 0 | G55: 0 | H55: 0 | I55: 0 | J55: 0 | K55: 0 | L55: 0 | M55: 0 | N55: 0 | O55: 0 | AC55: 2021-02-23
A56: 44410 | B56: 2021-08-02 | C56: 0 | D56: 0 | E56: 0 | F56: 0 | G56: 0 | H56: 0 | I56: 0 | J56: 0 | K56: 0 | L56: 0 | M56: 0 | N56: 0 | O56: 0 | AC56: 2021-02-24
A57: 44417 | B57: 2021-08-09 | C57: 0 | D57: 0 | E57: 0 | F57: 0 | G57: 0 | H57: 0 | I57: 0 | J57: 0 | K57: 0 | L57: 0 | M57: 0 | N57: 0 | O57: 0 | AC57: 2021-02-25
A58: 44424 | B58: =B57+7 -> 2021-08-16 | C58: 0 | D58: 0 | E58: 0 | F58: 0 | G58: 0 | H58: 0 | I58: 0 | J58: 0 | K58: 0 | L58: 0 | M58: 0 | N58: 0 | O58: 0 | AC58: 2021-02-26
A59: 44431 | B59: 2021-08-23 | C59: 0 | D59: 0 | E59: 0 | F59: 0 | G59: 0 | H59: 0 | I59: 0 | J59: 0 | K59: 0 | L59: 0 | M59: 0 | N59: 0 | O59: 0 | AC59: 2021-02-27
A60: 44438 | B60: 2021-08-30 | C60: 0 | D60: 0 | E60: 0 | F60: 0 | G60: 0 | H60: 0 | I60: 0 | J60: 0 | K60: 0 | L60: 0 | M60: 0 | N60: 0 | O60: 0 | AC60: 2021-02-28
A61: 44445 | B61: 2021-09-06 | C61: 0 | D61: 0 | E61: 0 | F61: 0 | G61: 0 | H61: 0 | I61: 0 | J61: 0 | K61: 0 | L61: 0 | M61: 0 | N61: 0 | O61: 0 | AC61: 2021-03-01
A62: 44452 | B62: 2021-09-13 | C62: 0 | D62: 0 | E62: 0 | F62: 0 | G62: 0 | H62: 0 | I62: 0 | J62: 0 | K62: 0 | L62: 0 | M62: 0 | N62: 0 | O62: 0 | AC62: 2021-03-02
A63: 44459 | B63: 2021-09-20 | C63: 0 | D63: 0 | E63: 0 | F63: 0 | G63: 0 | H63: 0 | I63: 0 | J63: 0 | K63: 0 | L63: 0 | M63: 0 | N63: 0 | O63: 0 | AC63: 2021-03-03
A64: 44466 | B64: 2021-09-27 | C64: 0 | D64: 0 | E64: 0 | F64: 0 | G64: 0 | H64: 0 | I64: 0 | J64: 0 | K64: 0 | L64: 0 | M64: 0 | N64: 0 | O64: 0 | AC64: 2021-03-04
A65: 44473 | B65: 2021-10-04 | C65: 0 | D65: 0 | E65: 0 | F65: 0 | G65: 0 | H65: 0 | I65: 0 | J65: 0 | K65: 0 | L65: 0 | M65: 0 | N65: 0 | O65: 0 | AC65: 2021-03-05
A66: 44480 | B66: 2021-10-11 | C66: 0 | D66: 0 | E66: 0 | F66: 0 | G66: 0 | H66: 0 | I66: 0 | J66: 0 | K66: 0 | L66: 0 | M66: 0 | N66: 0 | O66: 0 | AC66: 2021-03-06
A67: 44487 | B67: 2021-10-18 | C67: 0 | D67: 0 | E67: 0 | F67: 0 | G67: 0 | H67: 0 | I67: 0 | J67: 0 | K67: 0 | L67: 0 | M67: 0 | N67: 0 | O67: 0 | AC67: 2021-03-07
A68: 44494 | B68: 2021-10-25 | C68: 0 | D68: 0 | E68: 0 | F68: 0 | G68: 0 | H68: 0 | I68: 0 | J68: 0 | K68: 0 | L68: 0 | M68: 0 | N68: 0 | O68: 0 | AC68: 2021-03-08
A69: 44501 | B69: 2021-11-01 | C69: 0 | D69: 0 | E69: 0 | F69: 0 | G69: 0 | H69: 0 | I69: 0 | J69: 0 | K69: 0 | L69: 0 | M69: 0 | N69: 0 | O69: 0 | AC69: 2021-03-09
A70: 44508 | B70: 2021-11-08 | C70: 0 | D70: 0 | E70: 0 | F70: 0 | G70: 0 | H70: 0 | I70: 0 | J70: 0 | K70: 0 | L70: 0 | M70: 0 | N70: 0 | O70: 0 | AC70: 2021-03-10
A71: 44515 | B71: 2021-11-15 | C71: 0 | D71: 0 | E71: 0 | F71: 0 | G71: 0 | H71: 0 | I71: 0 | J71: 0 | K71: 0 | L71: 0 | M71: 0 | N71: 0 | O71: 0 | AC71: 2021-03-11
A72: 44522 | B72: 2021-11-22 | C72: 0 | D72: 0 | E72: 0 | F72: 0 | G72: 0 | H72: 0 | I72: 0 | J72: 0 | K72: 0 | L72: 0 | M72: 0 | N72: 0 | O72: 0 | AC72: 2021-03-12
A73: 44529 | B73: 2021-11-29 | C73: 0 | D73: 0 | E73: 0 | F73: 0 | G73: 0 | H73: 0 | I73: 0 | J73: 0 | K73: 0 | L73: 0 | M73: 0 | N73: 0 | O73: 0 | AC73: 2021-03-13
A74: 44536 | B74: 2021-12-06 | C74: 0 | D74: 0 | E74: 0 | F74: 0 | G74: 0 | H74: 0 | I74: 0 | J74: 0 | K74: 0 | L74: 0 | M74: 0 | N74: 0 | O74: 0 | AC74: 2021-03-14
A75: 44543 | B75: 2021-12-13 | C75: 0 | D75: 0 | E75: 0 | F75: 0 | G75: 0 | H75: 0 | I75: 0 | J75: 0 | K75: 0 | L75: 0 | M75: 0 | N75: 0 | O75: 0 | AC75: 2021-03-15
A76: 44550 | B76: 2021-12-20 | C76: 0 | D76: 0 | E76: 0 | F76: 0 | G76: 0 | H76: 0 | I76: 0 | J76: 0 | K76: 0 | L76: 0 | M76: 0 | N76: 0 | O76: 0 | AC76: 2021-03-16
A77: 44557 | B77: 2021-12-27 | C77: 0 | D77: 0 | E77: 0 | F77: 0 | G77: 0 | H77: 0 | I77: 0 | J77: 0 | K77: 0 | L77: 0 | M77: 0 | N77: 0 | O77: 0 | AC77: 2021-03-17
AC78: 2021-03-18
E79: ANNUAL LEAVE AND PUBLIC HOLIDAY (AL/PH): | J79: =J12/7 -> 52.14285714 | K79: =K12/7 -> 52.18 | AC79: 2021-03-19
E80: Annual leave and public holiday entitlement (Inc. B/F) | O80: =IF($O$10= "Yes",$O$12*0.175755,$O$12*0.149846)+O16 -> 0 | AC80: 2021-03-20
E81: Annual leave and public holiday taken | J81: =SUM($K$25:$K$77) -> 0 | K81: =SUM($M$25:$M$77) -> 0 | O81: =J81*$O$21+K81 -> 0 | AC81: 2021-03-21
E82: Annual leave and public holiday remaining | O82: =O80-O81 -> 0 | AC82: 2021-03-22
AC83: 2021-03-23
AC84: 2021-03-24
AC85: 2021-03-25
AC86: 2021-03-26
AC87: 2021-03-27
AC88: 2021-03-28
AC89: 2021-03-29
AC90: 2021-03-30
AC91: 2021-03-31
AC92: 2021-04-01
AC93: 2021-04-02
AC94: 2021-04-03
AC95: 2021-04-04
AC96: 2021-04-05
AC97: 2021-04-06
AC98: 2021-04-07
AC99: 2021-04-08
AC100: 2021-04-09
AC101: 2021-04-10
AC102: 2021-04-11
AC103: 2021-04-12
AC104: 2021-04-13
AC105: 2021-04-14
AC106: 2021-04-15
AC107: 2021-04-16
AC108: 2021-04-17
AC109: 2021-04-18
AC110: 2021-04-19
AC111: 2021-04-20
AC112: 2021-04-21
AC113: 2021-04-22
AC114: 2021-04-23
AC115: 2021-04-24
AC116: 2021-04-25
AC117: 2021-04-26
AC118: 2021-04-27
AC119: 2021-04-28
AC120: 2021-04-29
AC121: 2021-04-30
AC122: 2021-05-01
AC123: 2021-05-02
AC124: 2021-05-03
AC125: 2021-05-04
AC126: 2021-05-05
AC127: 2021-05-06
AC128: 2021-05-07
AC129: 2021-05-08
AC130: 2021-05-09
AC131: 2021-05-10
AC132: 2021-05-11
AC133: 2021-05-12
AC134: 2021-05-13
AC135: 2021-05-14
AC136: 2021-05-15
AC137: 2021-05-16
AC138: 2021-05-17
AC139: 2021-05-18
AC140: 2021-05-19
AC141: 2021-05-20
AC142: 2021-05-21
AC143: 2021-05-22
AC144: 2021-05-23
AC145: 2021-05-24
AC146: 2021-05-25
AC147: 2021-05-26
AC148: 2021-05-27
AC149: 2021-05-28
AC150: 2021-05-29
AC151: 2021-05-30
AC152: 2021-05-31
AC153: 2021-06-01
AC154: 2021-06-02
AC155: 2021-06-03
AC156: 2021-06-04
AC157: 2021-06-05
AC158: 2021-06-06
AC159: 2021-06-07
AC160: 2021-06-08
AC161: 2021-06-09
AC162: 2021-06-10
AC163: 2021-06-11
AC164: 2021-06-12
AC165: 2021-06-13
AC166: 2021-06-14
AC167: 2021-06-15
AC168: 2021-06-16
AC169: 2021-06-17
AC170: 2021-06-18
AC171: 2021-06-19
AC172: 2021-06-20
AC173: 2021-06-21
AC174: 2021-06-22
AC175: 2021-06-23
AC176: 2021-06-24
AC177: 2021-06-25
AC178: 2021-06-26
AC179: 2021-06-27
AC180: 2021-06-28
AC181: 2021-06-29
AC182: 2021-06-30
AC183: 2021-07-01
AC184: 2021-07-02
AC185: 2021-07-03
AC186: 2021-07-04
AC187: 2021-07-05
AC188: 2021-07-06
AC189: 2021-07-07
AC190: 2021-07-08
AC191: 2021-07-09
AC192: 2021-07-10
AC193: 2021-07-11
AC194: 2021-07-12
AC195: 2021-07-13
AC196: 2021-07-14
AC197: 2021-07-15
AC198: 2021-07-16
AC199: 2021-07-17
AC200: 2021-07-18
... 166 more rows
